bitfinex/quotes_ETHUSD_20250920
["timestamp","ask_amount","ask_price","bid_price","bid_amount"]
[1758352992112,3.59040323,4481.0,4480.9,0.2376]
[1758352994261,5.82204795,4481.0,4480.9,0.2376]
[1758352994961,5.82204795,4481.0,4480.9,0.001]
[1758352996309,3.59040323,4481.0,4480.9,0.001]
[1758352997003,3.59022876,4481.0,4480.9,0.001]
[1758352997311,3.59022876,4481.0,4480.9,3.696]
[1758352998119,3.59022876,4481.0,4480.9,3.9328]
[1758352999509,5.82187348,4481.0,4480.9,3.696]
[1758353000208,5.82387348,4481.0,4480.9,3.696]
[1758353000706,6.05017348,4481.0,4480.9,3.696]
[1758353000910,5.82387348,4481.0,4480.9,3.696]
[1758353001105,6.05017348,4481.0,4480.9,3.696]
[1758353001324,6.05017348,4481.0,4480.9,0.001]
[1758353002007,2.23174433,4480.8,4480.7,3.68]
[1758353002206,5.23179413,4480.7,4480.6,0.001]
[1758353002422,5.56642289,4480.7,4480.6,0.001]
[1758353002617,5.79272289,4480.7,4480.6,0.001]
[1758353005089,5.90483504,4480.7,4480.6,0.001]
[1758353031732,6.21926753,4480.7,4480.6,0.001]
[1758353032046,9.91326753,4480.7,4480.6,0.001]
[1758353036969,9.91325145,4480.7,4480.6,0.001]
[1758353037773,9.68695145,4480.7,4480.6,0.001]
[1758353038146,9.92125145,4480.7,4480.6,0.001]
[1758353038472,9.37251896,4480.7,4480.6,0.001]
[1758353040572,9.37239251,4480.7,4480.6,0.001]
[1758353040767,5.67839251,4480.7,4480.6,0.001]
[1758353040935,9.37339251,4480.7,4480.6,0.001]
[1758353041535,5.67839251,4480.7,4480.6,0.001]
[1758353041739,5.67839251,4480.7,4480.6,0.2481]
[1758353042246,5.56628036,4480.7,4480.6,0.2481]
[1758353043073,3.33448623,4480.7,4480.6,0.2481]
[1758353043368,0.33448623,4480.7,4480.6,0.2481]
[1758353043573,0.12543783,4480.7,4480.6,0.2481]
[1758353043803,0.33450089,4480.7,4480.6,0.2481]
[1758353044434,3.33450089,4480.7,4480.6,0.2481]
[1758353044632,0.33450089,4480.7,4480.6,0.2481]
[1758353045077,5.56629502,4480.7,4480.6,0.2481]
[1758353049790,9.82298721,4480.7,4480.6,0.2481]
[1758353054401,9.82498721,4480.7,4480.6,0.2481]
[1758353055614,9.82498721,4480.7,4480.6,0.001]
[1758353056879,9.82498721,4480.7,4480.6,0.2501]
[1758353057416,9.82498721,4480.7,4480.6,0.001]
[1758353059012,3.33650089,4480.7,4480.6,0.2501]
[1758353059188,5.56829502,4480.7,4480.6,0.2501]
[1758353059393,5.56789898,4480.7,4480.6,0.2501]
[1758353059897,5.44260966,4480.7,4480.6,0.001]
[1758353060089,5.56789898,4480.7,4480.6,0.001]
[1758353063407,5.56792002,4480.7,4480.6,0.001]
[1758353072507,9.82461221,4480.7,4480.6,0.2501]
[1758353076824,9.82461221,4480.7,4480.6,0.001]
[1758353081920,9.82461221,4480.7,4480.6,0.2501]
[1758353083536,9.82461221,4480.7,4480.6,0.001]
[1758353092375,10.06841221,4480.7,4480.6,3.328]
[1758353093128,10.06841221,4480.7,4480.6,0.001]
[1758353101339,5.23184394,4480.6,4480.5,0.001]
[1758353101543,5.56596983,4480.6,4480.5,0.001]
[1758353101743,5.79926983,4480.6,4480.5,0.001]
[1758353101975,5.79951754,4480.6,4480.5,0.001]
[1758353102137,6.47070127,4480.6,4480.5,0.001]
[1758353109749,11.5006838,4480.6,4480.5,0.001]
[1758353112486,11.5006838,4480.6,4480.4,0.001]
[1758353112487,2.23189376,4480.5,4480.4,0.001]
[1758353112665,5.56626736,4480.5,4480.4,0.001]
[1758353112866,5.79956736,4480.5,4480.4,0.001]
[1758353113768,6.47080216,4480.5,4480.4,0.001]
[1758353114373,10.16580216,4480.5,4480.4,0.001]
[1758353115415,10.16580216,4480.5,4480.1,1e-08]
[1758353115416,2.23204321,4480.2,4480.1,1e-08]
[1758353115616,10.59639934,4480.2,4480.1,1e-08]
[1758353115822,10.84309934,4480.2,4480.1,1e-08]
[1758353119008,14.53809934,4480.2,4480.1,1e-08]
[1758353122487,2.23224251,4479.8,4479.7,0.001]
[1758353122686,10.59659864,4479.8,4479.7,0.001]
[1758353123184,11.26788901,4479.8,4479.7,0.001]
[1758353126728,11.26788901,4479.8,4479.7,0.2326]
[1758353129932,11.26788901,4479.8,4479.7,0.001]
[1758353132735,11.26788901,4479.8,4479.7,0.2326]
[1758353135447,11.26788901,4479.8,4479.7,0.001]
[1758353136745,11.26788901,4479.8,4479.7,0.2326]
[1758353145563,11.26788901,4479.8,4479.7,0.001]
[1758353145774,11.50958901,4479.8,4479.7,0.001]
[1758353146167,11.26788901,4479.8,4479.7,0.001]
[1758353149686,11.26812817,4479.8,4479.7,0.001]
[1758353150956,11.26812817,4479.8,4479.7,0.2436]
[1758353154605,11.50982817,4479.8,4479.7,0.001]
[1758353154760,5.23229234,4479.7,4479.6,0.001]
[1758353154959,5.5669051,4479.7,4479.6,0.001]
[1758353155161,5.8086051,4479.7,4479.6,0.001]
[1758353157456,5.47399234,4479.7,4479.6,0.001]
[1758353157806,5.80889624,4479.7,4479.6,0.001]
[1758353161504,5.81149624,4479.7,4479.6,3.696]
[1758353164364,5.56719624,4479.7,4479.6,3.9444]
[1758353164795,5.56719624,4479.7,4479.6,2.13372138]
[1758353166898,5.56719624,4479.7,4479.6,0.2484]
[1758353167682,5.56719624,4479.7,4479.6,0.2457]
[1758353167907,5.56719624,4479.7,4479.5,3.695]
[1758353167908,2.23234217,4479.6,4479.5,3.695]
[1758353168092,5.56724607,4479.6,4479.5,3.695]
[1758353168282,5.56721105,4479.6,4479.5,3.695]
[1758353169784,6.23852094,4479.6,4479.5,3.9434]
[1758353171765,10.49758436,4479.6,4479.5,3.9434]
[1758353174518,6.23852204,4479.6,4479.5,3.9444]
[1758353174816,10.49758436,4479.6,4479.5,3.9444]
[1758353177169,10.49758436,4479.6,4479.5,3.696]
[1758353177375,10.49758436,4479.6,4479.5,3.935]
[1758353181314,10.49758436,4479.6,4479.5,3.696]
[1758353186516,10.73598436,4479.6,4479.5,3.696]
[1758353194252,10.73798436,4479.6,4479.5,3.696]
[1758353195055,10.73798436,4479.6,4479.5,1.88534559]
[1758353196161,10.73805471,4479.6,4479.5,1.88534559]
[1758353208056,10.73805035,4479.6,4479.5,1.88534559]
[1758353211186,10.73805035,4479.6,4479.5,0.001]
[1758353217098,10.49965035,4479.6,4479.5,0.001]
[1758353217798,10.74305035,4479.6,4479.5,0.001]
[1758353224337,2.23249168,4479.3,4479.2,0.2338]
[1758353224641,9.82648997,4479.3,4479.2,0.001]
[1758353225102,10.49778184,4479.3,4479.2,0.001]
[1758353225302,10.49778184,4479.3,4479.2,0.2297]
[1758353226797,10.49785097,4479.3,4479.2,0.2297]
[1758353233763,6.23878865,4479.3,4479.2,0.2297]
[1758353234358,6.23878865,4479.3,4479.2,0.001]
[1758353234753,6.46788865,4479.3,4479.2,0.001]
[1758353244023,6.46776788,4479.3,4479.2,0.001]
[1758353245101,6.23866788,4479.3,4479.2,0.001]
[1758353247294,6.23866788,4479.3,4479.2,0.2302]
[1758353252209,6.23859222,4479.3,4479.2,0.2302]
[1758353256613,6.23859222,4479.3,4479.2,0.001]
[1758353258124,6.23859222,4479.3,4479.2,0.2302]
[1758353258909,6.23859222,4479.3,4479.2,0.001]
[1758353276802,6.23859222,4479.3,4479.2,0.2507]
[1758353293250,6.23865484,4479.3,4479.2,0.2507]
[1758353293727,10.4978327,4479.3,4479.2,0.2507]
[1758353296455,10.4978327,4479.3,4479.2,0.001]
[1758353301294,10.49784734,4479.3,4479.2,0.001]
[1758353304102,10.37225597,4479.3,4479.2,0.001]
[1758353304406,10.4978631,4479.3,4479.2,0.001]
[1758353306877,10.7238631,4479.3,4479.2,0.001]
[1758353313731,10.72390999,4479.3,4479.2,0.001]
[1758353316201,10.49790999,4479.3,4479.2,0.001]
[1758353316619,10.72390999,4479.3,4479.2,0.001]
[1758353321418,10.72386722,4479.3,4479.2,0.001]
[1758353333664,10.49786722,4479.3,4479.2,0.001]
[1758353336383,10.49786722,4479.3,4479.2,0.001]
[1758353337408,10.49790177,4479.3,4479.2,0.001]
[1758353343407,10.49790177,4479.3,4479.2,0.2466]
[1758353343605,6.23872391,4479.3,4479.2,0.001]
[1758353343807,10.49790177,4479.3,4479.2,0.001]
[1758353348017,10.28856404,4479.3,4479.2,0.001]
[1758353348220,10.49791414,4479.3,4479.2,0.001]
[1758353353821,6.23873628,4479.3,4479.2,0.001]
[1758353364637,6.23872929,4479.3,4479.2,0.001]
[1758353370638,6.48302929,4479.3,4479.2,0.001]
[1758353375867,6.23872929,4479.3,4479.2,0.001]
[1758353385063,6.47882929,4479.3,4479.2,0.001]
[1758353387185,6.47876706,4479.3,4479.2,0.001]
[1758353388154,6.47874304,4479.3,4479.2,0.001]
[1758353399538,6.47865742,4479.3,4479.2,0.001]
[1758353402931,6.47848819,4479.3,4479.2,0.001]
[1758353406722,6.14388355,4479.3,4479.2,0.001]
[1758353406946,6.47844729,4479.3,4479.2,0.001]
[1758353414975,6.47846505,4479.3,4479.2,0.001]
[1758353415734,10.73905052,4479.3,4479.2,0.001]
[1758353417182,5.23254152,4479.2,4479.1,0.011]
[1758353417383,5.56712302,4479.2,4479.1,0.011]
[1758353417683,5.80762302,4479.2,4479.1,0.011]
[1758353424469,5.80766022,4479.2,4479.1,0.011]
[1758353427179,2.23269106,4478.9,4478.8,0.2489]
[1758353427379,9.82789523,4478.9,4478.8,0.2489]
[1758353427977,3.0,4478.8,4478.7,0.001]
[1758353428177,9.82794508,4478.8,4478.7,0.001]
[1758353428377,10.73990372,4478.8,4478.7,0.001]
[1758353430921,10.73987437,4478.8,4478.7,0.001]
[1758353431486,10.49937437,4478.8,4478.7,0.001]
[1758353431707,11.0543678,4478.8,4478.7,0.001]
[1758353434625,14.7473678,4478.8,4478.7,0.001]
[1758353437212,2.23294033,4478.4,4478.3,1.931]
[1758353437415,2.23304006,4478.2,4478.1,0.2589]
[1758353437603,5.56762941,4478.2,4478.1,0.01]
[1758353438322,9.82821488,4478.2,4478.1,0.2589]
[1758353440293,9.82821488,4478.2,4478.1,0.01]
[1758353441191,5.56762941,4478.2,4478.1,0.01]
[1758353441531,5.56762941,4478.2,4478.1,0.2589]
[1758353444232,9.82821488,4478.2,4478.1,0.2589]
[1758353447719,9.82821488,4478.2,4478.1,0.2589]
[1758353448603,5.56762941,4478.2,4478.1,0.2589]
[1758353450731,5.35847877,4478.2,4478.1,0.2589]
[1758353450935,5.5672416,4478.2,4478.1,0.2589]
[1758353455422,5.5672416,4478.2,4478.1,0.2589]
[1758353458844,5.5672416,4478.2,4478.1,0.2599]
[1758353460810,5.5672416,4478.2,4478.1,0.011]
[1758353462157,5.8028416,4478.2,4478.1,0.011]
[1758353463555,5.5672416,4478.2,4478.1,0.011]
[1758353463763,5.8028416,4478.2,4478.1,0.011]
[1758353466266,5.5672416,4478.2,4478.1,0.011]
[1758353472060,5.8028416,4478.2,4478.1,0.011]
[1758353473367,5.80287191,4478.2,4478.1,0.011]
[1758353474688,5.80507191,4478.2,4478.1,0.011]
[1758353483514,9.26227191,4478.2,4478.1,0.011]
[1758353483820,2.23328941,4477.7,4477.6,0.001]
[1758353484025,10.60164825,4477.7,4477.6,0.001]
[1758353484202,10.83944825,4477.7,4477.6,0.001]
[1758353484691,10.95010133,4477.7,4477.6,0.001]
[1758353486930,10.71230133,4477.7,4477.6,0.001]
[1758353487425,10.95010133,4477.7,4477.6,0.001]
[1758353488626,5.67817434,4477.7,4477.6,0.001]
[1758353488827,5.67817434,4477.7,4477.6,0.2375]
[1758353489616,5.56752126,4477.7,4477.6,0.2375]
[1758353491128,5.67901818,4477.7,4477.6,0.2375]
[1758353491290,5.67901818,4477.7,4477.6,0.001]
[1758353491697,5.67901818,4477.7,4477.6,0.2375]
[1758353493310,5.55354916,4477.7,4477.6,0.2375]
[1758353493503,5.67888058,4477.7,4477.6,0.2375]
[1758353493699,5.56738366,4477.7,4477.6,0.001]
[1758353493905,5.56738366,4477.7,4477.6,0.2375]
[1758353501461,5.56739346,4477.7,4477.6,0.2375]
[1758353505058,5.56739346,4477.7,4477.6,0.001]
[1758353505464,5.56760873,4477.7,4477.6,0.001]
[1758353514202,5.56760873,4477.7,4477.6,0.2349]
[1758353514891,3.33431932,4477.7,4477.6,0.2349]
[1758353515282,3.12534122,4477.7,4477.6,0.62839]
[1758353515805,3.33449496,4477.7,4477.6,0.62839]
[1758353516814,3.12534122,4477.7,4477.6,0.62839]
[1758353519472,3.12534122,4477.7,4477.6,0.39449]
[1758353519707,3.12534122,4477.7,4477.6,0.001]
[1758353527027,3.12534122,4477.7,4477.6,0.2446]
[1758353527333,3.12534122,4477.7,4477.6,0.001]
[1758353527936,5.35863063,4477.7,4477.6,0.001]
[1758353528435,5.81258476,4477.7,4477.6,3.702]
[1758353529007,5.56758476,4477.7,4477.6,3.702]
[1758353529211,5.81258476,4477.7,4477.6,3.702]
[1758353530542,5.81258476,4477.7,4477.6,0.001]
[1758353537836,10.07486909,4477.7,4477.6,0.001]
[1758353538182,5.81258476,4477.7,4477.6,0.001]
[1758353538393,5.56758476,4477.7,4477.6,0.2266]
[1758353538866,3.33429535,4477.7,4477.6,0.2266]
[1758353539894,3.33444038,4477.7,4477.6,0.2266]
[1758353541440,0.33444038,4477.7,4477.6,0.2266]
[1758353541645,0.08954406,4477.8,4477.6,0.2266]
[1758353541989,0.08954406,4477.8,4477.7,0.02233289]
[1758353542192,0.2149592,4477.8,4477.7,0.02233289]
[1758353542347,0.08954406,4477.8,4477.7,0.02233289]
[1758353542550,0.2149592,4477.8,4477.7,0.02233289]
[1758353542862,0.08954406,4477.8,4477.7,0.02233289]
[1758353543076,0.08954406,4477.8,4477.7,0.29516417]
[1758353544126,0.21102524,4478.1,4477.7,0.29516417]
[1758353544127,0.12741514,4478.1,4477.8,2.23322776]
[1758353544412,0.21102524,4478.0,4477.8,2.23322776]
[1758353544979,0.21102524,4478.0,4477.7,2.50611396]
[1758353545869,0.21102524,4478.0,4477.7,0.27283128]
[1758353546068,0.21102524,4478.0,4477.8,0.29787827]
[1758353546371,0.21102524,4478.0,4477.7,0.27283128]
[1758353546768,0.21102524,4478.0,4477.7,2.50611133]
[1758353547192,0.21102524,4478.0,4477.8,0.2256]
[1758353547391,0.21102524,4478.0,4477.9,0.2256]
[1758353554578,4.72330957,4478.0,4477.6,0.001]
[1758353554782,2.23323953,4477.8,4477.6,0.001]
[1758353555007,2.35847437,4477.7,4477.6,0.001]
[1758353555207,5.60847437,4477.7,4477.6,0.001]
[1758353555421,10.07938553,4477.7,4477.6,0.001]
[1758353567651,10.07926559,4477.7,4477.6,0.001]
[1758353576973,5.56698126,4477.7,4477.6,0.001]
[1758353578461,5.80478126,4477.7,4477.6,0.001]
[1758353586877,9.82926559,4477.7,4477.6,0.001]
[1758353596900,5.56698126,4477.7,4477.6,0.2363]
[1758353597595,3.33369185,4477.7,4477.6,0.2363]
[1758353598370,5.56698126,4477.7,4477.6,0.2363]
[1758353598578,5.56698126,4477.7,4477.6,0.001]
[1758353599107,5.56698126,4477.7,4477.6,0.2363]
[1758353600598,5.56698126,4477.7,4477.6,0.001]
[1758353602032,5.56732924,4477.7,4477.6,0.001]
[1758353602631,5.56732924,4477.7,4477.6,0.2363]
[1758353602793,3.33403983,4477.7,4477.6,0.2363]
[1758353603301,5.56732924,4477.7,4477.6,0.2363]
[1758353603499,3.33403983,4477.7,4477.6,0.2363]
[1758353603704,0.002,4478.1,4477.6,2.46963928]
[1758353604013,0.002,4478.1,4477.7,2.50254096]
[1758353604219,0.002,4478.1,4477.7,2.73784096]
[1758353604411,0.002,4478.1,4477.8,0.2353]
[1758353604626,0.002,4478.1,4477.9,0.02233189]
[1758353605012,0.002,4478.1,4478.0,0.2353]
[1758353605214,0.002,4478.1,4478.0,0.50908754]
[1758353610021,0.002,4478.1,4478.0,0.2353]
[1758353611813,0.002,4478.1,4477.6,0.001]
[1758353612147,0.002,4478.1,4477.7,0.2353]
[1758353612344,0.002,4478.1,4477.8,0.2353]
[1758353612515,0.002,4478.1,4477.6,0.001]
[1758353612719,0.002,4478.1,4477.7,0.45873793]
[1758353612921,0.002,4478.1,4477.8,0.2353]
[1758353613810,0.002,4478.1,4477.9,0.2353]
[1758353615016,0.002,4478.1,4477.7,0.22343793]
[1758353615345,0.2369,4478.0,4477.6,0.001]
[1758353615561,0.12528076,4478.0,4477.7,0.2353]
[1758353615762,0.002,4478.1,4477.7,0.2353]
[1758353616136,0.33595381,4478.1,4477.7,0.2353]
[1758353617070,0.33595381,4478.1,4477.8,0.2353]
[1758353617367,0.33595381,4478.1,4477.9,0.2353]
[1758353617769,0.002,4478.1,4477.9,0.2353]
[1758353618749,0.002,4478.1,4478.0,0.2353]
[1758353618962,0.002,4478.1,4477.7,2.46858941]
[1758353619163,0.002,4478.1,4477.8,0.70559658]
[1758353620580,0.002,4478.1,4477.9,0.2353]
[1758353620742,0.002,4478.1,4478.0,0.2353]
[1758353624179,2.23508992,4478.1,4477.6,0.2276]
[1758353624349,2.46338992,4478.1,4477.6,0.2276]
[1758353624551,0.2303,4478.1,4477.6,0.2276]
[1758353624750,0.2303,4478.1,4477.6,0.47370327]
[1758353625150,3.43887792,4478.1,4477.6,0.47370327]
[1758353625365,3.2303,4478.1,4477.6,0.47370327]
[1758353626384,0.2303,4478.1,4477.7,0.2266]
[1758353626579,0.2303,4478.1,4477.8,0.2266]
[1758353626882,0.33578237,4478.1,4477.8,0.2266]
[1758353632385,0.33578237,4478.1,4477.7,0.24804246]
[1758353632386,0.20861398,4478.0,4477.7,0.24804246]
[1758353632591,0.20861398,4478.0,4477.8,0.001]
[1758353633287,0.33378237,4477.9,4477.8,0.001]
[1758353633885,3.56208237,4477.9,4477.8,0.001]
[1758353635684,0.56237029,4477.9,4477.8,0.001]
[1758353636181,0.33407029,4477.9,4477.8,0.001]
[1758353637079,5.79555995,4477.9,4477.8,0.001]
[1758353638401,3.56237029,4477.9,4477.8,0.001]
[1758353641809,3.33407029,4477.9,4477.8,0.001]
[1758353643293,3.58307029,4477.9,4477.8,0.001]
[1758353644693,3.33407029,4477.9,4477.8,0.001]
[1758353646239,3.33443085,4477.9,4477.8,0.001]
[1758353646893,3.58343085,4477.9,4477.8,0.001]
[1758353648290,5.81662051,4477.9,4477.8,0.001]
[1758353671196,5.56762051,4477.9,4477.8,0.001]
[1758353675000,3.33443085,4477.9,4477.8,0.2454]
[1758353675295,5.56762051,4477.9,4477.8,0.2454]
[1758353678255,5.56761907,4477.9,4477.8,0.2454]
[1758353685454,5.56761907,4477.9,4477.8,0.001]
[1758353685815,5.56761907,4477.9,4477.8,0.2277]
[1758353688230,5.56761907,4477.9,4477.8,0.001]
[1758353691360,5.56761907,4477.9,4477.8,0.2277]
[1758353691853,3.33442941,4477.9,4477.8,0.001]
[1758353692055,3.33442941,4477.9,4477.8,0.2277]
[1758353695527,3.33442941,4477.9,4477.8,0.47613843]
[1758353696934,3.33442941,4477.9,4477.8,0.2277]
[1758353701147,3.33442941,4477.9,4477.8,0.001]
[1758353701347,3.33442941,4477.9,4477.8,0.2306]
[1758353702286,3.12541157,4477.9,4477.8,0.2306]
[1758353702453,3.33437496,4477.9,4477.8,0.2306]
[1758353702648,3.12541157,4477.9,4477.8,0.2306]
[1758353703395,3.33435238,4477.9,4477.8,0.2306]
[1758353705289,3.12541157,4477.9,4477.8,0.47709604]
[1758353706401,3.12541157,4477.9,4477.8,2.71033557]
[1758353706603,0.12541157,4477.9,4477.8,2.71033557]
[1758353706809,0.002,4478.1,4478.0,2.23313979]
[1758353707593,0.002,4478.1,4478.0,2.46273979]
[1758353707796,0.002,4478.1,4478.0,7.66732482]
[1758353707996,0.002,4478.1,4478.0,7.64499343]
[1758353711617,0.002,4478.1,4478.0,8.43699343]
[1758353714219,0.002,4478.1,4478.0,8.20739343]
[1758353714550,0.002,4478.1,4478.0,8.45019343]
[1758353716147,0.002,4478.1,4478.0,8.69149343]
[1758353719956,0.002,4478.1,4478.0,4.43076061]
[1758353723134,0.002,4478.1,4478.0,8.69076061]
[1758353727960,0.002,4478.1,4478.0,8.44796061]
[1758353732144,0.2433,4478.1,4478.0,8.20666061]
[1758353734102,0.002,4478.1,4478.0,8.20666061]
[1758353734460,0.002,4478.1,4478.0,8.44946061]
[1758353734994,0.002,4478.1,4478.0,4.18946061]
[1758353735370,0.002,4478.1,4478.0,4.211792]
[1758353737058,0.002,4478.1,4478.0,4.696392]
[1758353737263,0.002,4478.1,4478.0,4.67406061]
[1758353748208,0.002,4478.1,4478.0,4.43126061]
[1758353750001,0.002,4478.1,4478.0,4.67266061]
[1758353755617,0.002,4478.1,4478.0,8.93266061]
[1758353762263,0.002,4478.1,4478.0,8.69126061]
[1758353763018,0.002,4478.1,4478.0,8.92516061]
[1758353765917,0.002,4478.1,4478.0,8.69126061]
[1758353766123,0.002,4478.1,4478.0,8.92516061]
[1758353767851,0.002,4478.1,4478.0,8.69126061]
[1758353768515,0.002,4478.1,4478.0,8.92516061]
[1758353769320,0.002,4478.1,4478.0,8.69126061]
[1758353769722,0.002,4478.1,4478.0,8.92516061]
[1758353770030,0.002,4478.1,4478.0,8.69126061]
[1758353771322,0.2401,4478.1,4478.0,8.69126061]
[1758353781837,0.2401,4478.1,4478.0,12.94931048]
[1758353784435,0.2463,4478.1,4478.0,8.69126061]
[1758353784868,0.2463,4478.1,4478.0,8.20666061]
[1758353785054,0.2463,4478.1,4478.0,8.45296061]
[1758353785734,0.2463,4478.1,4478.0,8.20666061]
[1758353786035,0.2463,4478.1,4478.0,8.45296061]
[1758353786674,0.2463,4478.1,4478.0,7.28613979]
[1758353787248,0.2463,4478.1,4478.0,3.02613979]
[1758353790763,0.2463,4478.1,4478.0,2.23413979]
[1758353791542,0.2463,4478.1,4478.0,0.001]
[1758353792295,2.47938992,4478.1,4478.0,0.001]
[1758353792477,5.60444582,4478.1,4478.0,0.001]
[1758353792654,3.3713559,4478.1,4478.0,0.001]
[1758353794360,3.2463,4478.1,4478.0,0.001]
[1758353797660,0.2463,4478.1,4478.0,0.001]
[1758353804889,0.232,4478.1,4478.0,0.001]
[1758353805095,0.321517,4478.1,4478.0,0.001]
[1758353806695,0.091517,4478.1,4478.0,0.2366]
[1758353806864,0.002,4478.1,4478.0,0.2366]
[1758353807190,0.002,4478.1,4478.0,2.46973979]
[1758353814007,0.002,4478.1,4478.0,0.001]
[1758353814204,0.232,4478.1,4478.0,0.001]
[1758353816723,7.49004987,4478.1,4478.0,0.001]
[1758353816888,3.35696967,4478.1,4478.0,0.001]
[1758353821620,3.56590955,4478.1,4478.0,0.001]
[1758353821819,3.35696967,4478.1,4478.0,0.001]
[1758353824141,3.56591363,4478.1,4478.0,0.001]
[1758353824498,3.35696967,4478.1,4478.0,0.001]
[1758353826312,3.565962,4478.1,4478.0,0.001]
[1758353827608,7.82401187,4478.1,4478.0,0.001]
[1758353827817,10.05710179,4478.1,4478.0,0.001]
[1758353828739,7.82401187,4478.1,4478.0,0.001]
[1758353829609,3.565962,4478.1,4478.0,0.001]
[1758353832822,3.335962,4478.1,4478.0,0.001]
[1758353833462,3.569962,4478.1,4478.0,0.001]
[1758353835756,3.57004858,4478.1,4478.0,0.001]
[1758353836364,3.33604858,4478.1,4478.0,0.001]
[1758353836541,3.12696967,4478.1,4478.0,2.46323979]
[1758353836861,3.12696967,4478.1,4478.0,2.93522499]
[1758353838361,0.12696967,4478.1,4478.0,2.93522499]
[1758353838585,0.002,4478.1,4478.0,2.93522499]
[1758353844650,0.002,4478.1,4478.0,3.72722499]
[1758353851802,0.002,4478.1,4478.0,2.70612499]
[1758353852102,0.2509,4478.1,4478.0,2.70612499]
[1758353856980,0.002,4478.1,4478.0,3.72722499]
[1758353857311,0.002,4478.1,4478.0,3.74955638]
[1758353859114,0.002,4478.1,4478.0,3.72722499]
[1758353862277,0.002,4478.1,4478.0,3.74955638]
[1758353868425,0.002,4478.1,4478.0,7.98722499]
[1758353870516,0.002,4478.1,4478.0,3.72722499]
[1758353870694,0.002,4478.1,4478.0,3.74955638]
[1758353872607,0.002,4478.1,4478.0,3.72722499]
[1758353872806,0.002,4478.1,4478.0,3.74955638]
[1758353874921,0.002,4478.1,4478.0,3.83904154]
[1758353877747,0.002,4478.1,4478.0,3.81671015]
[1758353878102,0.002,4478.1,4478.0,3.83904154]
[1758353878304,0.002,4478.1,4478.0,3.81671015]
[1758353878844,0.002,4478.1,4478.0,3.83904154]
[1758353880300,0.002,4478.1,4478.0,6.83904154]
[1758353880505,0.002,4478.1,4478.0,6.81671015]
[1758353881540,1e-08,4478.6,4478.5,3.02489047]
[1758353881742,1e-08,4478.6,4478.5,11.38076445]
[1758353881940,1e-08,4478.6,4478.5,11.60473555]
[1758353882303,1e-08,4478.6,4478.5,11.6942083]
[1758353886308,1e-08,4478.6,4478.5,15.9542083]
[1758353888410,1e-08,4478.6,4478.5,15.9552083]
[1758353894344,1e-08,4478.6,4478.5,15.7089083]
[1758353894846,0.22840001,4478.6,4478.5,9.88585227]
[1758353895193,0.22840001,4478.6,4478.5,7.67785227]
[1758353895423,0.22840001,4478.6,4478.5,6.88585227]
[1758353895604,0.22840001,4478.6,4478.5,3.11536322]
[1758353895812,0.22840001,4478.6,4478.5,2.32336322]
[1758353896152,0.22840001,4478.6,4478.5,3.02589047]
[1758353899299,0.22840001,4478.6,4478.5,3.04821937]
[1758353901873,1e-08,4478.6,4478.5,3.04821937]
[1758353902074,1e-08,4478.6,4478.5,3.82856712]
[1758353903688,1e-08,4478.6,4478.5,4.04453822]
[1758353903876,1e-08,4478.6,4478.5,3.80623822]
[1758353904978,1e-08,4478.6,4478.5,4.06686712]
[1758353905363,1e-08,4478.6,4478.5,3.82856712]
[1758353905560,1e-08,4478.6,4478.5,3.80623822]
[1758353905898,1e-08,4478.6,4478.5,8.06313558]
[1758353906096,1e-08,4478.6,4478.5,3.80623822]
[1758353906511,1e-08,4478.6,4478.5,8.06313558]
[1758353907159,1e-08,4478.6,4478.5,8.06086558]
[1758353908310,0.22840001,4478.6,4478.5,3.25202048]
[1758353908470,0.22840001,4478.6,4478.5,3.02362047]
[1758353909583,0.22840001,4478.6,4478.5,2.23162047]
[1758353914216,0.22840001,4478.6,4478.5,3.02362047]
[1758353914418,1e-08,4478.6,4478.5,3.02362047]
[1758353914777,0.22840001,4478.6,4478.5,3.02362047]
[1758353917220,1e-08,4478.6,4478.5,3.04594937]
[1758353917420,1e-08,4478.6,4478.5,3.02362047]
[1758353917803,1e-08,4478.6,4478.5,3.04594937]
[1758353919027,1e-08,4478.6,4478.5,3.02362047]
[1758353920757,1e-08,4478.6,4478.5,3.04594937]
[1758353921255,1e-08,4478.6,4478.5,3.02362047]
[1758353922322,1e-08,4478.6,4478.5,3.04594937]
[1758353923053,1e-08,4478.6,4478.5,3.26192047]
[1758353923352,1e-08,4478.6,4478.5,3.02362047]
[1758353924475,1e-08,4478.6,4478.5,3.82085999]
[1758353924756,1e-08,4478.6,4478.5,3.58205999]
[1758353924930,1e-08,4478.6,4478.5,3.82085999]
[1758353927745,1e-08,4478.6,4478.5,8.08085999]
[1758353932809,0.23230001,4478.6,4478.5,7.28362047]
[1758353933614,0.23230001,4478.6,4478.5,3.02362047]
[1758353939513,0.23230001,4478.6,4478.5,7.28362047]
[1758353945533,0.23230001,4478.6,4478.5,3.02362047]
[1758353945852,0.24980001,4478.6,4478.5,3.02362047]
[1758353947151,1e-08,4478.6,4478.5,3.02362047]
[1758353950229,0.24980001,4478.6,4478.5,3.02362047]
[1758353950653,1e-08,4478.6,4478.5,3.02362047]
[1758353951568,1e-08,4478.6,4478.5,7.28362047]
[1758353954834,1e-08,4478.6,4478.5,7.51152047]
[1758353955173,1e-08,4478.6,4478.5,8.48596839]
[1758353956437,1e-08,4478.6,4478.5,4.22596839]
[1758353956636,1e-08,4478.6,4478.5,4.02039729]
[1758353956860,1e-08,4478.6,4478.5,4.24829729]
[1758353958275,1e-08,4478.6,4478.5,3.25152047]
[1758353959099,1e-08,4478.6,4478.5,3.27384937]
[1758353959269,1e-08,4478.6,4478.5,7.53074673]
[1758353959469,1e-08,4478.6,4478.5,7.50841783]